[Event "Late-Titled-Tuesday-Blitz-August-29-2023"]
[Site "Chess.com"]
[Date "2023.08.29"]
[Round "1"]
[White "Roedor"]
[Black "KaydenTroffChess"]
[Result "0-1"]
[WhiteElo "2436"]
[BlackElo "2775"]
[TimeControl "180+1"]
[EndTime "14:08:08 PDT"]
[Termination "KaydenTroffChess won on time"]

1. d4 {[%clk 0:02:44.3]} 1... Nf6 {[%clk 0:02:59.4]} 2. c4 {[%clk 0:02:39.2]}
2... g6 {[%clk 0:02:57.6]} 3. g3 {[%clk 0:02:38.9]} 3... c6 {[%clk 0:02:54.5]}
4. Bg2 {[%clk 0:02:37.2]} 4... d5 {[%clk 0:02:54.6]} 5. Qa4 {[%clk 0:02:35.5]}
5... dxc4 {[%clk 0:02:44.1]} 6. Qxc4 {[%clk 0:02:36.4]} 6... Bg7 {[%clk
0:02:44.2]} 7. Nf3 {[%clk 0:02:35.4]} 7... O-O {[%clk 0:02:43.8]} 8. O-O {[%clk
0:02:35.5]} 8... Bf5 {[%clk 0:02:40.1]} 9. Nc3 {[%clk 0:02:34.2]} 9... Nbd7
{[%clk 0:02:37.9]} 10. Qb3 {[%clk 0:02:31]} 10... Qb6 {[%clk 0:02:35.7]} 11. Bf4
{[%clk 0:02:21]} 11... Rfc8 {[%clk 0:02:14.7]} 12. Rfc1 {[%clk 0:02:13.7]} 12...
Be6 {[%clk 0:01:50.7]} 13. Qxb6 {[%clk 0:02:07.9]} 13... axb6 {[%clk 0:01:50]}
14. e4 {[%clk 0:01:57.1]} 14... Ra5 {[%clk 0:01:48.3]} 15. Ng5 {[%clk
0:01:44.7]} 15... Nf8 {[%clk 0:01:40.8]} 16. Nxe6 {[%clk 0:01:20.2]} 16... Nxe6
{[%clk 0:01:41.7]} 17. Be3 {[%clk 0:01:20.4]} 17... Ng4 {[%clk 0:01:34.4]} 18.
Nd5 {[%clk 0:01:13.2]} 18... Re8 {[%clk 0:01:13.3]} 19. Nxb6 {[%clk 0:01:02.5]}
19... Nxd4 {[%clk 0:01:11.4]} 20. Bf1 {[%clk 0:00:54.2]} 20... Nf3+ {[%clk
0:00:42.7]} 21. Kg2 {[%clk 0:00:52.5]} 21... Nxe3+ {[%clk 0:00:33.9]} 22. fxe3
{[%clk 0:00:52.7]} 22... Nd2 {[%clk 0:00:33.6]} 23. Nc4 {[%clk 0:00:45.1]} 23...
Nxc4 {[%clk 0:00:32.4]} 24. Rxc4 {[%clk 0:00:45.8]} 24... Bxb2 {[%clk
0:00:32.6]} 25. Rb1 {[%clk 0:00:44.7]} 25... Be5 {[%clk 0:00:31.4]} 26. Rxb7
{[%clk 0:00:39.8]} 26... Rxa2+ {[%clk 0:00:31]} 27. Kf3 {[%clk 0:00:40.2]} 27...
Rxh2 {[%clk 0:00:29.3]} 28. Rxc6 {[%clk 0:00:39.6]} 28... Rh1 {[%clk 0:00:28.5]}
29. Bc4 {[%clk 0:00:38.9]} 29... Rg1 {[%clk 0:00:19.9]} 30. Rc5 {[%clk
0:00:28.1]} 30... Rxg3+ {[%clk 0:00:18.8]} 31. Kf2 {[%clk 0:00:28.2]} 31... Bd6
{[%clk 0:00:19.3]} 32. Rc6 {[%clk 0:00:24]} 32... Rg5 {[%clk 0:00:18.8]} 33.
Bxf7+ {[%clk 0:00:22.9]} 33... Kxf7 {[%clk 0:00:17.9]} 34. Rxd6 {[%clk
0:00:23.3]} 34... h5 {[%clk 0:00:18.5]} 35. Kf3 {[%clk 0:00:19.1]} 35... h4
{[%clk 0:00:18.4]} 36. Rd2 {[%clk 0:00:17.9]} 36... Rh8 {[%clk 0:00:17.8]} 37.
Rh2 {[%clk 0:00:15.9]} 37... Rg3+ {[%clk 0:00:16.2]} 38. Kf4 {[%clk 0:00:14.5]}
38... g5+ {[%clk 0:00:15.5]} 39. Ke5 {[%clk 0:00:13.1]} 39... Rh6 {[%clk
0:00:15.5]} 40. Rf2+ {[%clk 0:00:12.3]} 40... Kg6 {[%clk 0:00:10.9]} 41. Rxe7
{[%clk 0:00:11]} 41... Kh5 {[%clk 0:00:09.7]} 42. Rg7 {[%clk 0:00:06.2]} 42...
h3 {[%clk 0:00:09.5]} 43. Kf5 {[%clk 0:00:03.8]} 43... Kh4 {[%clk 0:00:08.9]}
44. e5 {[%clk 0:00:03.9]} 44... g4 {[%clk 0:00:07.1]} 45. e6 {[%clk 0:00:03.7]}
45... Rh5+ {[%clk 0:00:07.6]} 46. Ke4 {[%clk 0:00:02.7]} 46... Rg2 {[%clk
0:00:07.2]} 47. Rf1 {[%clk 0:00:02.7]} 47... h2 {[%clk 0:00:07.3]} 48. e7 {[%clk
0:00:03]} 48... Rg1 {[%clk 0:00:07.4]} 49. Rxg1 {[%clk 0:00:02.8]} 49... hxg1=Q
{[%clk 0:00:08.3]} 50. e8=Q {[%clk 0:00:03.2]} 50... Qg2+ {[%clk 0:00:09]} 51.
Kd4 {[%clk 0:00:03.2]} 51... Rd5+ {[%clk 0:00:09.7]} 52. Kc4 {[%clk 0:00:03.4]}
52... Kg3 {[%clk 0:00:05.2]} 53. Qb8+ {[%clk 0:00:01.6]} 53... Kf2 {[%clk
0:00:05]} 54. Qb7 {[%clk 0:00:01.5]} 54... Rd2 {[%clk 0:00:04]} 0-1

[Event "Late-Titled-Tuesday-Blitz-August-29-2023"]
[Site "Chess.com"]
[Date "2023.08.29"]
[Round "1"]
[White "GMG"]
[Black "Ducke13"]
[Result "1-0"]
[WhiteElo "2744"]
[BlackElo "2425"]
[TimeControl "180+1"]
[EndTime "14:08:08 PDT"]
[Termination "GMG won by checkmate"]

1. d4 {[%clk 0:02:57.6]} 1... Nf6 {[%clk 0:02:09.8]} 2. c4 {[%clk 0:02:57]} 2...
g6 {[%clk 0:02:09.6]} 3. Nf3 {[%clk 0:02:52.9]} 3... Bg7 {[%clk 0:02:09.5]} 4.
g3 {[%clk 0:02:53.4]} 4... c6 {[%clk 0:02:09.7]} 5. Bg2 {[%clk 0:02:53.3]} 5...
d5 {[%clk 0:02:10.5]} 6. Qb3 {[%clk 0:02:53.8]} 6... a5 {[%clk 0:01:53.9]} 7.
Bf4 {[%clk 0:02:49.1]} 7... a4 {[%clk 0:01:52]} 8. Qc2 {[%clk 0:02:41.1]} 8...
Bf5 {[%clk 0:01:47.6]} 9. Qc1 {[%clk 0:02:40.9]} 9... O-O {[%clk 0:01:47.1]} 10.
O-O {[%clk 0:02:40.7]} 10... Na6 {[%clk 0:01:33.8]} 11. Nbd2 {[%clk 0:01:58]}
11... Ne4 {[%clk 0:01:15.2]} 12. Rd1 {[%clk 0:01:40.1]} 12... Nc7 {[%clk
0:01:00.5]} 13. Nh4 {[%clk 0:01:39.2]} 13... Ne6 {[%clk 0:00:23.2]} 14. Nxf5
{[%clk 0:01:30.6]} 14... Nxf4 {[%clk 0:00:20]} 15. gxf4 {[%clk 0:01:27.5]} 15...
gxf5 {[%clk 0:00:17.4]} 16. e3 {[%clk 0:01:25.1]} 16... e6 {[%clk 0:00:16.2]}
17. Nxe4 {[%clk 0:01:22.1]} 17... fxe4 {[%clk 0:00:15]} 18. b4 {[%clk
0:01:20.9]} 18... axb3 {[%clk 0:00:10.8]} 19. axb3 {[%clk 0:01:21.8]} 19... f5
{[%clk 0:00:06.7]} 20. Rxa8 {[%clk 0:01:11.1]} 20... Qxa8 {[%clk 0:00:07.6]} 21.
c5 {[%clk 0:01:10.7]} 21... Qa2 {[%clk 0:00:06.3]} 22. Qb1 {[%clk 0:01:08]}
22... Ra8 {[%clk 0:00:06.6]} 23. Qxa2 {[%clk 0:01:08.3]} 23... Rxa2 {[%clk
0:00:07.5]} 24. Rb1 {[%clk 0:01:08.8]} 24... Bf8 {[%clk 0:00:04.6]} 25. b4
{[%clk 0:01:08.8]} 25... Ra8 {[%clk 0:00:02.1]} 26. b5 {[%clk 0:01:07.9]} 26...
Kf7 {[%clk 0:00:01.7]} 27. Bf1 {[%clk 0:01:06]} 27... Rc8 {[%clk 0:00:01.4]} 28.
Ra1 {[%clk 0:01:04.1]} 28... Be7 {[%clk 0:00:01.1]} 29. Ra7 {[%clk 0:00:57.4]}
29... Rb8 {[%clk 0:00:01.4]} 30. b6 {[%clk 0:00:44.1]} 30... Ke8 {[%clk
0:00:01.3]} 31. Be2 {[%clk 0:00:42.4]} 31... Bd8 {[%clk 0:00:01.7]} 32. f3
{[%clk 0:00:39.6]} 32... Kd7 {[%clk 0:00:01.8]} 33. fxe4 {[%clk 0:00:40]} 33...
dxe4 {[%clk 0:00:01.9]} 34. Bc4 {[%clk 0:00:39.2]} 34... Be7 {[%clk 0:00:01.8]}
35. Kf1 {[%clk 0:00:39.1]} 35... Bh4 {[%clk 0:00:02.1]} 36. Ba6 {[%clk 0:00:36]}
36... Kc8 {[%clk 0:00:02]} 37. Bc4 {[%clk 0:00:36.2]} 37... Kd7 {[%clk
0:00:02.4]} 38. Bb3 {[%clk 0:00:36.4]} 38... h6 {[%clk 0:00:02.7]} 39. Kg2
{[%clk 0:00:36.6]} 39... Be1 {[%clk 0:00:02.7]} 40. Ra2 {[%clk 0:00:34.9]} 40...
Bc3 {[%clk 0:00:02.8]} 41. Kf2 {[%clk 0:00:33.3]} 41... Bb4 {[%clk 0:00:03.4]}
42. Ra1 {[%clk 0:00:28.8]} 42... Bc3 {[%clk 0:00:03.6]} 43. Rg1 {[%clk
0:00:28.6]} 43... Re8 {[%clk 0:00:03.4]} 44. Rg7+ {[%clk 0:00:27.1]} 44... Kc8
{[%clk 0:00:03.9]} 45. Rg6 {[%clk 0:00:26.3]} 45... Kb8 {[%clk 0:00:04.2]} 46.
Bxe6 {[%clk 0:00:25.6]} 46... Rf8 {[%clk 0:00:04]} 47. Rxh6 {[%clk 0:00:22.7]}
47... Bd2 {[%clk 0:00:04.6]} 48. Ke2 {[%clk 0:00:21.5]} 48... Bc1 {[%clk
0:00:04.9]} 49. h4 {[%clk 0:00:20.8]} 49... Bb2 {[%clk 0:00:05.2]} 50. h5 {[%clk
0:00:20.6]} 50... Bc1 {[%clk 0:00:05.5]} 51. Rg6 {[%clk 0:00:20.6]} 51... Rh8
{[%clk 0:00:05.9]} 52. h6 {[%clk 0:00:20.5]} 52... Bb2 {[%clk 0:00:05.4]} 53.
Rg8+ {[%clk 0:00:20.5]} 53... Rxg8 {[%clk 0:00:05.1]} 54. Bxg8 {[%clk
0:00:21.4]} 54... Kc8 {[%clk 0:00:02.6]} 55. h7 {[%clk 0:00:21.5]} 55... Bxd4
{[%clk 0:00:02.6]} 56. exd4 {[%clk 0:00:22.4]} 56... e3 {[%clk 0:00:02.9]} 57.
h8=Q {[%clk 0:00:22.3]} 57... Kd7 {[%clk 0:00:03.8]} 58. Qe5 {[%clk 0:00:21.9]}
58... Kd8 {[%clk 0:00:04.1]} 59. Kxe3 {[%clk 0:00:22]} 59... Kd7 {[%clk
0:00:04.2]} 60. d5 {[%clk 0:00:22.6]} 60... cxd5 {[%clk 0:00:03.9]} 61. Qxd5+
{[%clk 0:00:22.7]} 61... Kc8 {[%clk 0:00:04.2]} 62. Qxf5+ {[%clk 0:00:22]} 62...
Kb8 {[%clk 0:00:04.4]} 63. Qe5+ {[%clk 0:00:22.4]} 63... Kc8 {[%clk 0:00:04.9]}
64. Be6+ {[%clk 0:00:22.3]} 64... Kd8 {[%clk 0:00:05.8]} 65. Qd6+ {[%clk
0:00:22.4]} 65... Ke8 {[%clk 0:00:06.6]} 66. Qd7+ {[%clk 0:00:23.1]} 66... Kf8
{[%clk 0:00:07.5]} 67. Qf7# {[%clk 0:00:23.7]} 1-0

[Event "Late-Titled-Tuesday-Blitz-August-29-2023"]
[Site "Chess.com"]
[Date "2023.08.29"]
[Round "1"]
[White "platy3"]
[Black "HajiyevKanan"]
[Result "1-0"]
[WhiteElo "2926"]
[BlackElo "2491"]
[TimeControl "180+1"]
[EndTime "14:08:11 PDT"]
[Termination "platy3 won by resignation"]

1. e4 {[%clk 0:03:00.9]} 1... c6 {[%clk 0:02:51.2]} 2. Nf3 {[%clk 0:02:58.5]}
2... d5 {[%clk 0:02:52.1]} 3. Nc3 {[%clk 0:02:59.1]} 3... a6 {[%clk 0:02:46.4]}
4. d4 {[%clk 0:02:57.9]} 4... Bg4 {[%clk 0:02:40.5]} 5. h3 {[%clk 0:02:55]} 5...
Bh5 {[%clk 0:02:40]} 6. Be2 {[%clk 0:02:37.6]} 6... e6 {[%clk 0:02:39.3]} 7. O-O
{[%clk 0:02:37.3]} 7... Nf6 {[%clk 0:02:39]} 8. exd5 {[%clk 0:02:25]} 8... cxd5
{[%clk 0:02:39.9]} 9. Ne5 {[%clk 0:02:25.5]} 9... Bxe2 {[%clk 0:02:39.7]} 10.
Nxe2 {[%clk 0:02:26.4]} 10... Nc6 {[%clk 0:02:39.7]} 11. c3 {[%clk 0:02:22.6]}
11... Bd6 {[%clk 0:02:34.6]} 12. Bf4 {[%clk 0:02:18.9]} 12... O-O {[%clk
0:02:29.1]} 13. Nd3 {[%clk 0:02:07.1]} 13... Ne4 {[%clk 0:02:16]} 14. f3 {[%clk
0:02:00.3]} 14... Bxf4 {[%clk 0:02:09.7]} 15. Nexf4 {[%clk 0:01:45.5]} 15... Ng3
{[%clk 0:02:06.7]} 16. Re1 {[%clk 0:01:45.3]} 16... Qg5 {[%clk 0:01:58.1]} 17.
Qc1 {[%clk 0:01:36.7]} 17... h5 {[%clk 0:01:44]} 18. Ne5 {[%clk 0:01:30.7]}
18... h4 {[%clk 0:01:15.9]} 19. Nxc6 {[%clk 0:01:22.1]} 19... bxc6 {[%clk
0:01:16.1]} 20. Nd3 {[%clk 0:01:22.5]} 20... Qg6 {[%clk 0:00:56.4]} 21. Qd2
{[%clk 0:01:19.4]} 21... Rfc8 {[%clk 0:00:45.9]} 22. Nc5 {[%clk 0:01:16.4]}
22... a5 {[%clk 0:00:42.5]} 23. b3 {[%clk 0:01:16]} 23... Ra7 {[%clk 0:00:36.1]}
24. Re5 {[%clk 0:01:14.9]} 24... Qf6 {[%clk 0:00:26.7]} 25. Rae1 {[%clk
0:01:13]} 25... Re7 {[%clk 0:00:21.6]} 26. Qd3 {[%clk 0:00:58.2]} 26... g6
{[%clk 0:00:18.3]} 27. Qa6 {[%clk 0:00:56.9]} 27... Rcc7 {[%clk 0:00:15]} 28.
Qxa5 {[%clk 0:00:42]} 28... Qf4 {[%clk 0:00:15.2]} 29. Qa3 {[%clk 0:00:36]}
29... Qd2 {[%clk 0:00:14.2]} 30. Qc1 {[%clk 0:00:29.7]} 30... Qxc1 {[%clk
0:00:12.6]} 31. Rxc1 {[%clk 0:00:29.5]} 31... Ra7 {[%clk 0:00:12.9]} 32. a4
{[%clk 0:00:29.4]} 32... f6 {[%clk 0:00:12.6]} 33. Ree1 {[%clk 0:00:28.8]} 33...
Kf7 {[%clk 0:00:12.9]} 34. Kf2 {[%clk 0:00:28.9]} 34... e5 {[%clk 0:00:12.3]}
35. dxe5 {[%clk 0:00:22.7]} 35... fxe5 {[%clk 0:00:13.2]} 36. b4 {[%clk
0:00:23.2]} 36... Kf6 {[%clk 0:00:13]} 37. a5 {[%clk 0:00:22.7]} 37... Kf5
{[%clk 0:00:12.8]} 38. Rcd1 {[%clk 0:00:22.4]} 38... Kf4 {[%clk 0:00:11.7]} 39.
Rd2 {[%clk 0:00:15.4]} 39... g5 {[%clk 0:00:12]} 40. Rb2 {[%clk 0:00:12.5]}
40... Kf5 {[%clk 0:00:11.7]} 41. Rc2 {[%clk 0:00:09.7]} 41... Kf4 {[%clk
0:00:11.6]} 42. c4 {[%clk 0:00:10.1]} 42... d4 {[%clk 0:00:11.7]} 43. Nd3+
{[%clk 0:00:10.5]} 43... Kf5 {[%clk 0:00:11.9]} 44. Ra2 {[%clk 0:00:10.3]} 44...
Reb7 {[%clk 0:00:11.3]} 45. Rxe5+ {[%clk 0:00:08.6]} 45... Kf6 {[%clk
0:00:11.6]} 46. Rc5 {[%clk 0:00:08.7]} 46... Nf5 {[%clk 0:00:10.3]} 47. Rxc6+
{[%clk 0:00:08.8]} 47... Kf7 {[%clk 0:00:10.7]} 48. b5 {[%clk 0:00:06.6]} 48...
Ne3 {[%clk 0:00:09.2]} 49. a6 {[%clk 0:00:04.6]} 49... Re7 {[%clk 0:00:07.7]}
50. b6 {[%clk 0:00:05.2]} 50... Nd1+ {[%clk 0:00:08]} 51. Kg1 {[%clk 0:00:05.2]}
51... Re1+ {[%clk 0:00:07.4]} 52. Nxe1 {[%clk 0:00:05.2]} 52... Re7 {[%clk
0:00:07]} 53. Nd3 {[%clk 0:00:05]} 53... Re3 {[%clk 0:00:06.5]} 54. Rd2 {[%clk
0:00:03.8]} 54... Nc3 {[%clk 0:00:03.3]} 55. b7 {[%clk 0:00:04.3]} 55... Re8
{[%clk 0:00:02.7]} 56. Rc8 {[%clk 0:00:04.4]} 56... Re1+ {[%clk 0:00:02.2]} 57.
Nxe1 {[%clk 0:00:04.3]} 1-0

[Event "Late-Titled-Tuesday-Blitz-August-29-2023"]
[Site "Chess.com"]
[Date "2023.08.29"]
[Round "1"]
[White "AryanTari"]
[Black "SHIVACalypso"]
[Result "1-0"]
[WhiteElo "2930"]
[BlackElo "2493"]
[TimeControl "180+1"]
[EndTime "14:08:16 PDT"]
[Termination "AryanTari won by resignation"]

1. b3 {[%clk 0:03:00.9]} 1... e5 {[%clk 0:02:57]} 2. Bb2 {[%clk 0:03:01]} 2...
Nc6 {[%clk 0:02:56.8]} 3. c4 {[%clk 0:02:59.2]} 3... g6 {[%clk 0:02:54.4]} 4. h4
{[%clk 0:02:56.5]} 4... h6 {[%clk 0:02:53.2]} 5. Nc3 {[%clk 0:02:46.4]} 5... Bg7
{[%clk 0:02:53.2]} 6. d3 {[%clk 0:02:45.8]} 6... Nge7 {[%clk 0:02:52.5]} 7. e3
{[%clk 0:02:36.9]} 7... O-O {[%clk 0:02:52.3]} 8. g4 {[%clk 0:02:23.3]} 8... d5
{[%clk 0:02:50.6]} 9. Bg2 {[%clk 0:02:17]} 9... d4 {[%clk 0:02:48.3]} 10. Nd5
{[%clk 0:02:16.9]} 10... Nxd5 {[%clk 0:02:46.7]} 11. cxd5 {[%clk 0:02:16.9]}
11... Ne7 {[%clk 0:02:45.1]} 12. e4 {[%clk 0:02:15.6]} 12... f5 {[%clk
0:02:40.5]} 13. gxf5 {[%clk 0:02:15.7]} 13... gxf5 {[%clk 0:02:41.4]} 14. Qh5
{[%clk 0:02:14.6]} 14... Qd6 {[%clk 0:02:33.5]} 15. Ne2 {[%clk 0:02:09.3]} 15...
Qb4+ {[%clk 0:02:32.5]} 16. Kd1 {[%clk 0:02:05.7]} 16... fxe4 {[%clk 0:02:30.1]}
17. Bxe4 {[%clk 0:02:05.5]} 17... Rxf2 {[%clk 0:02:21.6]} 18. Rg1 {[%clk
0:02:03.3]} 18... Bf5 {[%clk 0:02:18.6]} 19. Qxh6 {[%clk 0:01:38.6]} 19... Bg6
{[%clk 0:01:49.7]} 20. Rxg6 {[%clk 0:01:13]} 20... Nxg6 {[%clk 0:01:38]} 21.
Qxg6 {[%clk 0:01:12.9]} 21... Rf1+ {[%clk 0:01:38.2]} 22. Kc2 {[%clk 0:01:13.1]}
22... Rxa1 {[%clk 0:01:36.6]} 23. Bxa1 {[%clk 0:01:00.3]} 23... Qe1 {[%clk
0:01:35.8]} 24. Qh7+ {[%clk 0:00:25.2]} 24... Kf8 {[%clk 0:01:35.4]} 25. Qf5+
{[%clk 0:00:25.4]} 25... Kg8 {[%clk 0:01:33.2]} 26. Qe6+ {[%clk 0:00:08.8]}
26... Kh8 {[%clk 0:01:31.8]} 27. Qg4 {[%clk 0:00:09]} 27... Qxa1 {[%clk
0:01:24]} 28. Qh5+ {[%clk 0:00:09.3]} 28... Kg8 {[%clk 0:01:23.3]} 29. Bh7+
{[%clk 0:00:10]} 29... Kf8 {[%clk 0:00:58.1]} 30. Qf5+ {[%clk 0:00:09.7]} 30...
Ke7 {[%clk 0:00:56.8]} 31. Qe6+ {[%clk 0:00:10.1]} 31... Kf8 {[%clk 0:00:52.6]}
32. Qg8+ {[%clk 0:00:09.2]} 32... Ke7 {[%clk 0:00:51.6]} 33. Qxg7+ {[%clk
0:00:09.6]} 33... Kd6 {[%clk 0:00:51.9]} 34. Qf6+ {[%clk 0:00:09.1]} 34... Kc5
{[%clk 0:00:50.1]} 35. Qe7+ {[%clk 0:00:09.5]} 35... Kb6 {[%clk 0:00:50]} 36.
Qb4+ {[%clk 0:00:09.2]} 36... Ka6 {[%clk 0:00:50.2]} 37. Qa4+ {[%clk 0:00:09.1]}
37... Kb6 {[%clk 0:00:50.5]} 38. b4 {[%clk 0:00:03.3]} 38... a5 {[%clk 0:00:45]}
39. Be4 {[%clk 0:00:01.8]} 39... Qe1 {[%clk 0:00:39.9]} 40. Nc1 {[%clk
0:00:01.1]} 40... Qc3+ {[%clk 0:00:32.5]} 41. Kb1 {[%clk 0:00:01.6]} 41... Qxb4+
{[%clk 0:00:33.3]} 42. Qxb4+ {[%clk 0:00:02.1]} 42... axb4 {[%clk 0:00:34.2]}
43. h5 {[%clk 0:00:02.7]} 43... Rh8 {[%clk 0:00:31.9]} 44. Bg6 {[%clk
0:00:03.3]} 44... Kc5 {[%clk 0:00:31.6]} 45. Ne2 {[%clk 0:00:03.9]} 45... Kxd5
{[%clk 0:00:31]} 46. Ng3 {[%clk 0:00:04.6]} 46... b5 {[%clk 0:00:25.7]} 47. Bf7+
{[%clk 0:00:05.1]} 47... Kd6 {[%clk 0:00:25.5]} 48. Nf5+ {[%clk 0:00:05.6]}
48... Kd7 {[%clk 0:00:24.8]} 49. h6 {[%clk 0:00:06.1]} 49... c5 {[%clk
0:00:22.6]} 50. Kb2 {[%clk 0:00:06.1]} 50... c4 {[%clk 0:00:13.2]} 51. dxc4
{[%clk 0:00:06.3]} 51... bxc4 {[%clk 0:00:14.1]} 52. Bxc4 {[%clk 0:00:06.2]}
52... e4 {[%clk 0:00:14.4]} 53. Kc2 {[%clk 0:00:06.7]} 53... e3 {[%clk
0:00:12.3]} 54. Kd3 {[%clk 0:00:06.8]} 54... Re8 {[%clk 0:00:07.4]} 55. Ke2
{[%clk 0:00:04.6]} 55... Kc6 {[%clk 0:00:07]} 56. h7 {[%clk 0:00:04.8]} 56...
Kc5 {[%clk 0:00:05.8]} 57. Bg8 {[%clk 0:00:04.8]} 57... Rd8 {[%clk 0:00:05.5]}
58. h8=Q {[%clk 0:00:05.1]} 58... d3+ {[%clk 0:00:06.2]} 59. Kxe3 {[%clk
0:00:05.8]} 59... d2 {[%clk 0:00:06.8]} 60. Qe5+ {[%clk 0:00:06.5]} 60... Kb6
{[%clk 0:00:06.2]} 61. Qf6+ {[%clk 0:00:07]} 61... Kb5 {[%clk 0:00:05.7]} 62.
Qxd8 {[%clk 0:00:06]} 62... d1=Q {[%clk 0:00:06.6]} 63. Qxd1 {[%clk 0:00:06.2]}
1-0

[Event "Late-Titled-Tuesday-Blitz-August-29-2023"]
[Site "Chess.com"]
[Date "2023.08.29"]
[Round "1"]
[White "Fh2411"]
[Black "mistrzemi"]
[Result "1/2-1/2"]
[WhiteElo "2629"]
[BlackElo "2341"]
[TimeControl "180+1"]
[EndTime "14:08:18 PDT"]
[Termination "Game drawn - insufficient material"]

1. d4 {[%clk 0:02:57.7]} 1... Nf6 {[%clk 0:02:58.9]} 2. c4 {[%clk 0:02:58.2]}
2... e6 {[%clk 0:02:57.9]} 3. Nc3 {[%clk 0:02:58.7]} 3... d5 {[%clk 0:02:57.5]}
4. Bg5 {[%clk 0:02:58.4]} 4... Be7 {[%clk 0:02:57.1]} 5. e3 {[%clk 0:02:58.8]}
5... O-O {[%clk 0:02:57.1]} 6. Qc2 {[%clk 0:02:58.5]} 6... h6 {[%clk 0:02:57]}
7. Bh4 {[%clk 0:02:58.5]} 7... b6 {[%clk 0:02:51.8]} 8. cxd5 {[%clk 0:02:56.6]}
8... Nxd5 {[%clk 0:02:49.7]} 9. Bxe7 {[%clk 0:02:56.7]} 9... Qxe7 {[%clk
0:02:50.6]} 10. Nxd5 {[%clk 0:02:54.4]} 10... exd5 {[%clk 0:02:51.5]} 11. Rc1
{[%clk 0:02:48.6]} 11... c6 {[%clk 0:02:51.2]} 12. Nf3 {[%clk 0:02:46.3]} 12...
Bb7 {[%clk 0:02:43.1]} 13. Bd3 {[%clk 0:02:43.4]} 13... Nd7 {[%clk 0:02:41.8]}
14. O-O {[%clk 0:02:42.6]} 14... Rac8 {[%clk 0:02:36.7]} 15. b3 {[%clk
0:02:25.3]} 15... c5 {[%clk 0:02:14.4]} 16. Qe2 {[%clk 0:02:17.4]} 16... Rc7
{[%clk 0:02:09.1]} 17. Bb1 {[%clk 0:02:05.1]} 17... Nf6 {[%clk 0:01:59.1]} 18.
Ne5 {[%clk 0:01:58.1]} 18... cxd4 {[%clk 0:01:49.9]} 19. exd4 {[%clk 0:01:57.2]}
19... Rxc1 {[%clk 0:01:46.1]} 20. Rxc1 {[%clk 0:01:58.1]} 20... Rc8 {[%clk
0:01:45.6]} 21. Rxc8+ {[%clk 0:01:52]} 21... Bxc8 {[%clk 0:01:46.5]} 22. Qc2
{[%clk 0:01:52.5]} 22... Be6 {[%clk 0:01:39.1]} 23. f3 {[%clk 0:01:44.6]} 23...
Qb4 {[%clk 0:01:30]} 24. Qd1 {[%clk 0:01:43.4]} 24... Qc3 {[%clk 0:01:19.9]} 25.
Kf2 {[%clk 0:01:27]} 25... Qb2+ {[%clk 0:00:31.6]} 26. Kg1 {[%clk 0:01:26]}
26... Nd7 {[%clk 0:00:20.5]} 27. Nc6 {[%clk 0:01:05.8]} 27... a5 {[%clk
0:00:18.3]} 28. Qc2 {[%clk 0:00:59.7]} 28... Qxc2 {[%clk 0:00:16.2]} 29. Bxc2
{[%clk 0:01:00.6]} 29... f6 {[%clk 0:00:13.5]} 30. Kf2 {[%clk 0:00:57.8]} 30...
Kf7 {[%clk 0:00:13.1]} 31. Ke3 {[%clk 0:00:57.2]} 31... g5 {[%clk 0:00:11.4]}
32. g3 {[%clk 0:00:54.8]} 32... f5 {[%clk 0:00:04.2]} 33. Ne5+ {[%clk
0:00:48.4]} 33... Nxe5 {[%clk 0:00:04.2]} 34. dxe5 {[%clk 0:00:49.3]} 34... Ke7
{[%clk 0:00:02.9]} 35. f4 {[%clk 0:00:48.9]} 35... Kd7 {[%clk 0:00:02.6]} 36.
Kd4 {[%clk 0:00:48.7]} 36... Kc6 {[%clk 0:00:03.1]} 37. fxg5 {[%clk 0:00:36.5]}
37... hxg5 {[%clk 0:00:03]} 38. h4 {[%clk 0:00:37.3]} 38... f4 {[%clk
0:00:02.1]} 39. hxg5 {[%clk 0:00:30.2]} 39... fxg3 {[%clk 0:00:02.3]} 40. Ke3
{[%clk 0:00:30.8]} 40... Kc5 {[%clk 0:00:02.2]} 41. Kf3 {[%clk 0:00:25.1]} 41...
g2 {[%clk 0:00:02.7]} 42. Kxg2 {[%clk 0:00:25]} 42... Kd4 {[%clk 0:00:03.6]} 43.
Bh7 {[%clk 0:00:21.3]} 43... Kxe5 {[%clk 0:00:04.1]} 44. Kf3 {[%clk 0:00:20.9]}
44... d4 {[%clk 0:00:04.4]} 45. Ke2 {[%clk 0:00:18.9]} 45... Kf4 {[%clk
0:00:02.1]} 46. g6 {[%clk 0:00:18.8]} 46... Ke5 {[%clk 0:00:01.4]} 47. g7 {[%clk
0:00:18.8]} 47... Kd5 {[%clk 0:00:01.9]} 48. Kd3 {[%clk 0:00:17.8]} 48... Kc5
{[%clk 0:00:02.3]} 49. g8=Q {[%clk 0:00:18.6]} 49... Bxg8 {[%clk 0:00:02.7]} 50.
Bxg8 {[%clk 0:00:19.5]} 50... Kb4 {[%clk 0:00:03.4]} 51. a4 {[%clk 0:00:18.7]}
51... b5 {[%clk 0:00:04.3]} 52. axb5 {[%clk 0:00:13.9]} 52... Kxb5 {[%clk
0:00:05.1]} 53. Kc2 {[%clk 0:00:06]} 53... a4 {[%clk 0:00:04.7]} 54. bxa4+
{[%clk 0:00:05.7]} 54... Kxa4 {[%clk 0:00:05.2]} 55. Kd3 {[%clk 0:00:06.6]}
55... Ka3 {[%clk 0:00:05.5]} 56. Kxd4 {[%clk 0:00:07.5]} 1/2-1/2